bitfinex-derivatives/quotes_SOLF0:USTF0_20240923
["timestamp","ask_amount","ask_price","bid_price","bid_amount"]
[1727128415149,9.61,144.07,144.03,3.4712]
[1727128415451,5.5938,144.08,144.03,3.4712]
[1727128415655,9.61,144.07,144.03,3.4712]
[1727128416248,2.7962,144.13,144.05,3.4706]
[1727128416553,9.61,144.09,144.04,9.61]
[1727128417050,9.61,144.09,144.05,3.4707]
[1727128418052,75.61820234,144.14,144.05,9.61]
[1727128418255,9.61,144.14,144.08,9.61]
[1727128418643,9.61,144.15,144.11,3.4692]
[1727128418844,8.4482,144.2,144.11,3.4692]
[1727128419155,9.61,144.16,144.12,3.469]
[1727128420250,13.67775954,144.19,144.12,3.469]
[1727128420452,9.61,144.16,144.11,3.4693]
[1727128422255,5.6597,144.2,144.12,3.469]
[1727128422557,9.61,144.16,144.12,3.469]
[1727128424055,5.6597,144.2,144.12,3.469]
[1727128424358,9.61,144.16,144.12,3.469]
[1727128428864,5.6597,144.2,144.12,3.469]
[1727128429061,9.61,144.17,144.12,3.469]
[1727128429364,2.7711,144.2,144.12,3.469]
[1727128429560,9.61,144.16,144.12,3.469]
[1727128431355,5.6102,144.2,144.12,3.469]
[1727128431557,9.61,144.16,144.12,3.469]
[1727128432870,9.61,144.16,144.11,13.0792]
[1727128433669,5.6102,144.2,144.11,13.0792]
[1727128433862,9.61,144.16,144.11,13.0792]
[1727128434264,5.6102,144.2,144.12,3.4689]
[1727128434567,9.61,144.17,144.12,3.4689]
[1727128436465,5.6102,144.2,144.13,9.61]
[1727128436763,9.61,144.18,144.13,9.61]
[1727128437160,5.6102,144.2,144.13,9.61]
[1727128437356,9.61,144.17,144.13,9.61]
[1727128437560,5.6102,144.2,144.13,9.61]
[1727128437759,9.61,144.18,144.13,13.0787]
[1727128439665,9.61,144.18,144.14,3.4686]
[1727128445862,5.6102,144.2,144.14,3.4686]
[1727128446172,9.61,144.19,144.14,3.4686]
[1727128450176,15.2202,144.2,144.15,3.4684]
[1727128452280,2.7711,144.2,144.17,3.4679]
[1727128452575,13.00774781,144.21,144.17,3.4679]
[1727128453377,5.3144,144.26,144.19,3.4674]
[1727128453574,9.61,144.24,144.19,3.4674]
[1727128454283,7.2434482,144.41,144.21,9.61]
[1727128454481,8.3204,144.38,144.25,9.61]
[1727128454783,9.61,144.31,144.25,9.61]
[1727128455270,9.61,144.31,144.27,3.4653]
[1727128462486,9.61,144.3,144.27,3.4653]
[1727128463188,8.3204,144.38,144.27,3.4653]
[1727128463377,9.61,144.3,144.27,3.4653]
[1727128463576,8.3204,144.38,144.27,3.4653]
[1727128463874,9.61,144.3,144.27,3.4653]
[1727128465182,9.61,144.28,144.19,5.4828]
[1727128465380,8.3204,144.38,144.19,12.3855]
[1727128465381,9.61,144.24,144.19,12.3855]
[1727128465780,9.61,144.24,144.21,3.4668]
[1727128467089,9.61,144.24,144.2,3.4671]
[1727128467481,9.61,144.24,144.19,9.61]
[1727128468085,9.61,144.24,144.19,13.0773]
[1727128468389,9.61,144.24,144.19,3.4673]
[1727128468994,9.61,144.23,144.19,3.4673]
[1727128480100,9.61,144.24,144.19,3.4673]
[1727128480904,13.11877406,144.24,144.2,3.4672]
[1727128483710,13.11877406,144.24,144.21,3.4669]
[1727128483894,13.11877406,144.24,144.18,9.61]
[1727128484094,13.11877406,144.24,144.19,3.4673]
[1727128487001,6.961,144.51,144.2,3.4672]
[1727128487200,9.61,144.36,144.29,9.61]
[1727128487402,9.61,144.36,144.3,9.61]
[1727128488205,9.61,144.36,144.31,3.4645]
[1727128488503,9.61,144.34,144.24,81.48780712]
[1727128488802,9.61,144.32,144.24,81.48780712]
[1727128488999,77.99395703,144.37,144.27,9.61]
[1727128489304,9.61,144.33,144.27,9.61]
[1727128489505,9.61,144.33,144.29,3.465]
[1727128490799,9.61,144.32,144.29,3.465]
[1727128499922,9.61,144.31,144.29,3.465]
[1727128502513,77.99395703,144.37,144.29,3.465]
[1727128502717,9.61,144.31,144.29,3.465]
[1727128502917,77.99395703,144.37,144.26,9.61]
[1727128503112,9.61,144.31,144.26,9.61]
[1727128503526,9.61,144.31,144.28,3.4653]
[1727128504127,9.61,144.31,144.27,3.4654]
[1727128504714,9.61,144.31,144.26,9.61]
[1727128504915,9.61,144.3,144.26,9.61]
[1727128505827,9.61,144.3,144.27,3.4655]
[1727128507225,3.45735187,144.31,144.27,9.61]
[1727128507425,9.61,144.32,144.27,9.61]
[1727128507621,3.52590332,144.31,144.27,9.61]
[1727128507921,3.52590332,144.31,144.3,3.4648]
[1727128508121,9.61,144.32,144.27,9.61]
[1727128508324,9.61,144.32,144.24,81.48780712]
[1727128508529,77.99395703,144.37,144.24,81.48780712]
[1727128508725,9.61,144.31,144.24,81.48780712]
[1727128508930,9.61,144.31,144.29,3.4649]
[1727128509629,9.61,144.31,144.3,3.4648]
[1727128510129,9.61,144.31,144.26,9.61]
[1727128510331,9.61,144.31,144.24,81.48780712]
[1727128510632,9.61,144.31,144.26,9.61]
[1727128510938,9.61,144.31,144.28,3.4651]
[1727128514126,13.14640083,144.31,144.28,3.4651]
[1727128519037,3.53640083,144.31,144.26,9.61]
[1727128519223,9.61,144.31,144.26,9.61]
[1727128519537,13.0370794,144.31,144.28,3.4651]
[1727128523329,9.61,144.3,144.22,2.2078]
[1727128523525,9.61,144.27,144.22,2.2078]
[1727128524940,9.61,144.27,144.24,3.4661]
[1727128528236,4.6745,144.3,144.13,3.54728245]
[1727128528237,9.61,144.26,144.13,3.54728245]
[1727128528440,9.61,144.23,144.14,4.5494]
[1727128528634,9.61,144.23,144.17,9.61]
[1727128528938,9.61,144.23,144.19,3.4672]
[1727128529631,13.15252664,144.23,144.19,3.4672]
[1727128546351,9.61,144.27,144.22,9.61]
[1727128547053,9.61,144.27,144.23,3.4663]
[1727128548649,7.0165,144.3,144.25,3.466]
[1727128548856,9.61,144.28,144.25,3.466]
[1727128551355,9.61,144.28,144.26,3.4657]
[1727128553264,9.61,144.28,144.25,3.4659]
[1727128554667,4.6745,144.3,144.25,3.4659]
[1727128554866,9.61,144.28,144.25,3.4659]
[1727128555558,9.61,144.28,144.26,3.4657]
[1727128564383,9.61,144.28,144.25,3.466]
[1727128564580,9.61,144.27,144.25,3.466]
[1727128580700,9.61,144.29,144.23,9.61]
[1727128581600,9.61,144.29,144.25,3.4658]
[1727128591696,2.3243,144.3,144.23,9.61]
[1727128591898,2.3757,144.34,144.27,9.61]
[1727128592093,16.00895505,144.36,144.28,9.61]
[1727128592295,9.61,144.34,144.31,3.4645]
[1727128592599,9.61,144.35,144.3,9.61]
[1727128593299,9.61,144.35,144.32,3.4642]
[1727128601814,2.3451,144.36,144.32,3.4642]
[1727128602017,9.61,144.35,144.33,3.464]
[1727128602914,2.3451,144.36,144.33,3.464]
[1727128603210,9.61,144.35,144.33,3.464]
[1727128607815,11.9551,144.36,144.31,11.0139]
[1727128608116,2.3451,144.36,144.31,11.0139]
[1727128608312,2.3451,144.36,144.34,3.4637]
[1727128609219,9.61,144.37,144.34,3.4637]
[1727128610521,9.61,144.37,144.35,3.4635]
[1727128610724,3.46575152,144.4,144.35,3.4635]
[1727128610915,9.61,144.37,144.35,3.4635]
[1727128611310,13.61205996,144.43,144.36,3.4632]
[1727128611521,9.61,144.39,144.36,3.4632]
[1727128617524,9.61,144.38,144.36,3.4632]
[1727128621224,9.61,144.38,144.35,3.4635]
[1727128622122,9.61,144.39,144.35,3.4635]
[1727128622317,13.59657867,144.43,144.36,3.4633]
[1727128622522,9.61,144.39,144.33,9.61]
[1727128622723,9.61,144.38,144.35,3.4635]
[1727128628026,9.61,144.38,144.34,3.4637]
[1727128628334,6.09882262,144.44,144.33,9.61]
[1727128628535,9.61,144.38,144.33,9.61]
[1727128628732,9.61,144.38,144.34,3.4637]
[1727128629935,6.09882262,144.44,144.34,3.4637]
[1727128630138,9.61,144.39,144.34,3.4637]
[1727128632833,9.61,144.35,144.15,81.53592718]
[1727128633137,17.0,144.38,144.19,9.61]
[1727128633138,9.61,144.24,144.19,9.61]
[1727128633437,9.61,144.24,144.19,3.4673]
[1727128633634,9.61,144.24,144.19,9.61]
[1727128634136,9.61,144.24,144.16,4.77046585]
[1727128634334,13.09121447,144.26,144.2,9.61]
[1727128634533,9.61,144.26,144.2,9.61]
[1727128634935,1.3643,144.25,144.2,9.61]
[1727128636034,1.3643,144.25,144.23,9.61]
[1727128636337,1.3643,144.25,144.16,4.77046585]
[1727128636338,84.9615,144.38,144.24,9.61]
[1727128636535,9.61,144.31,144.26,9.61]
[1727128636833,1.3643,144.37,144.27,9.61]
[1727128636834,9.61,144.33,144.27,9.61]
[1727128637229,1.3643,144.37,144.29,9.61]
[1727128637436,9.61,144.34,144.29,9.61]
[1727128638633,9.61,144.34,144.26,1.4606]
[1727128639044,9.61,144.34,144.29,9.61]
[1727128640029,9.61,144.35,144.3,9.61]
[1727128641341,9.61,144.35,144.3,13.0748]
[1727128643241,1.3643,144.37,144.31,3.4645]
[1727128643441,1.3643,144.37,144.31,13.0745]
[1727128643442,9.61,144.36,144.31,13.0745]
[1727128643849,9.61,144.36,144.32,3.4643]
[1727128644036,1.3643,144.37,144.32,3.4643]
[1727128644231,10.9743,144.37,144.32,3.4643]
[1727128645031,562.0,144.64,144.36,9.61]
[1727128645032,224.0,144.54,144.36,9.61]
[1727128645236,83.2,144.65,144.39,9.61]
[1727128645237,9.61,144.45,144.39,9.61]
[1727128645944,9.61,144.43,144.36,81.42196417]
[1727128646145,1.3806,144.47,144.36,91.03196417]
[1727128646337,9.61,144.44,144.36,91.03196417]
[1727128647340,9.61,144.44,144.39,3.4625]
[1727128648047,3.43150491,144.46,144.39,3.4625]
[1727128648349,9.61,144.43,144.39,3.4625]
[1727128651649,9.61,144.44,144.39,3.4625]
[1727128652249,9.61,144.44,144.32,3.41641822]
[1727128652250,9.61,144.4,144.21,10.4003]
[1727128652546,9.61,144.37,144.3,9.61]
[1727128652743,9.61,144.37,144.32,3.4643]
[1727128654350,9.61,144.37,144.32,13.0743]
[1727128654550,9.61,144.38,144.33,3.464]
[1727128666451,1.335,144.49,144.35,9.61]
[1727128666659,9.61,144.41,144.35,9.61]
[1727128666949,13.08452253,144.41,144.36,3.4633]
[1727128668554,13.08452253,144.41,144.37,3.4631]
[1727128668956,9.61,144.41,144.37,3.4631]
[1727128669351,12.99855004,144.41,144.37,3.4631]
[1727128669950,3.38855004,144.41,144.37,3.4631]
[1727128670260,9.61,144.4,144.37,3.4631]
[1727128671854,3.46097865,144.41,144.37,3.4631]
[1727128672051,9.61,144.4,144.37,3.4631]
[1727128678057,3.44711671,144.42,144.37,3.4631]
[1727128678453,9.61,144.4,144.37,3.4631]
[1727128680755,9.61,144.39,144.35,9.61]
[1727128681261,9.61,144.36,144.32,81.44242639]
[1727128681556,9.61,144.35,144.32,81.44242639]
[1727128682867,9.61,144.35,144.32,84.90672639]
[1727128683657,9.61,144.35,144.32,81.44242639]
[1727128683859,9.61,144.33,144.27,1.3375]
[1727128684060,14.94977442,144.41,144.26,9.61]
[1727128684061,9.61,144.31,144.26,9.61]
[1727128684259,9.61,144.31,144.27,3.4653]
[1727128686362,9.61,144.31,144.28,3.4653]
[1727128687769,9.61,144.31,144.26,3.4656]
[1727128687968,9.61,144.3,144.26,9.61]
[1727128688362,9.61,144.3,144.26,13.0756]
[1727128689873,9.61,144.3,144.26,3.4656]
[1727128690378,9.61,144.29,144.25,3.4659]
[1727128694768,9.61,144.29,144.24,9.61]
[1727128694769,9.61,144.29,144.24,3.4661]
[1727128695477,9.61,144.27,144.23,84.95499547]
[1727128695684,9.61,144.25,144.23,81.48859547]
[1727128696182,9.61,144.24,144.18,10.9555]
[1727128696678,9.61,144.22,144.18,1.3455]
[1727128697180,9.61,144.22,144.17,11.0268]
[1727128697181,9.61,144.21,144.06,83.2]
[1727128697376,9.61,144.21,144.15,9.61]
[1727128698188,9.61,144.21,144.16,3.468]
[1727128698382,9.61,144.19,144.13,1.3455]
[1727128698576,9.61,144.19,144.13,10.9555]
[1727128699080,9.61,144.19,144.15,3.4683]
[1727128699483,9.61,144.19,144.15,9.61]
[1727128699687,6.08041034,144.23,144.15,9.61]
[1727128699688,9.61,144.2,144.15,9.61]
[1727128700490,9.61,144.2,144.16,3.468]
[1727128702089,6.08041034,144.23,144.17,3.4678]
[1727128702281,9.61,144.21,144.17,3.4678]
[1727128702478,6.08041034,144.23,144.16,9.61]
[1727128702683,9.61,144.22,144.18,3.4675]
[1727128702984,10.959,144.23,144.18,9.61]
[1727128703180,9.61,144.23,144.19,3.4672]
[1727128707592,9.61,144.22,144.19,3.4672]
[1727128708685,9.61,144.22,144.13,1.3455]
[1727128708887,9.61,144.22,144.16,9.61]
[1727128709593,9.61,144.22,144.18,3.4675]
[1727128710596,4.83340421,144.24,144.17,3.4678]
[1727128710597,9.61,144.2,144.17,3.4678]
[1727128710797,9.61,144.19,144.17,3.4678]
[1727128710997,4.83340421,144.24,144.12,1.3707]
[1727128710998,9.61,144.18,144.12,1.3707]
[1727128711192,9.61,144.18,144.12,10.9807]
[1727128711596,9.61,144.18,144.14,3.4685]
[1727128712294,9.61,144.16,144.13,3.4688]
[1727128712500,2.8086,144.23,144.01,81.48219269]
[1727128712501,9.61,144.14,144.01,81.48219269]
[1727128712792,9.61,144.11,144.09,3.4697]
[1727128712993,9.61,144.11,144.06,2.7159]
[1727128712994,9.61,144.11,144.06,1.3707]
[1727128713183,9.61,144.11,144.06,10.9807]
[1727128713385,9.61,144.1,144.06,1.3707]
[1727128713987,9.61,144.1,144.06,4.8412]
[1727128714390,14.99,144.12,144.06,4.8412]
[1727128715295,14.99,144.12,144.05,3.4707]
[1727128716299,14.99,144.12,144.06,3.4705]
[1727128716698,2.7894,144.13,144.05,14.99]
[1727128716898,2.7894,144.13,144.08,3.4699]
[1727128721907,2.7894,144.13,144.02,2.6848]
[1727128722104,2.7894,144.13,144.05,14.99]
[1727128722503,14.99,144.15,144.06,14.99]
[1727128722807,14.99,144.17,144.06,14.99]
[1727128723503,3.48458415,144.16,144.11,3.4692]
[1727128732306,14.99,144.17,144.06,14.99]
[1727128732510,14.99,144.17,144.08,14.99]
[1727128732706,14.99,144.17,144.09,1.4057]
[1727128733011,14.99,144.17,144.13,3.4688]
[1727128733807,14.99,144.17,144.09,2.7417]
[1727128733808,14.99,144.17,144.12,3.4689]
[1727128736408,9.6,144.14,144.12,3.4689]
[1727128740411,9.6,144.14,144.11,3.4692]
[1727128741111,9.6,144.13,144.1,3.4695]
[1727128742619,3.50378393,144.16,144.09,9.6]
[1727128742918,2.7292,144.2,144.12,9.6]
[1727128743113,9.6,144.17,144.14,3.4685]
[1727128743316,2.7292,144.2,144.12,9.6]
[1727128743510,9.6,144.17,144.12,9.6]
[1727128743713,9.6,144.17,144.13,3.4688]
[1727128744418,2.7292,144.2,144.13,9.6]
[1727128744614,9.6,144.18,144.13,9.6]
[1727128744820,9.6,144.18,144.15,3.4683]
[1727128745413,9.6,144.18,144.14,3.4685]
[1727128746018,9.6,144.18,144.13,9.6]
[1727128746019,9.6,144.18,144.15,3.4683]
[1727128746217,2.7292,144.2,144.13,9.6]
[1727128746522,10.956,144.2,144.15,9.6]
[1727128746714,10.956,144.2,144.17,3.4678]
[1727128748216,1.356,144.2,144.18,3.4676]
[1727128749218,1.3492,144.26,144.17,9.6]
[1727128749518,9.6,144.24,144.19,9.6]
[1727128750221,9.6,144.24,144.2,3.467]
[1727128750416,9.6,144.24,144.19,9.6]
[1727128750621,9.6,144.24,144.2,9.6]
[1727128751123,9.6,144.24,144.2,3.467]
[1727128751325,9.6,144.24,144.2,13.067]
[1727128752421,14.98,144.27,144.2,3.467]
[1727128755526,1.3934,144.26,144.2,3.467]
[1727128755922,1.3934,144.26,144.17,16.4258]
[1727128755923,14.98,144.25,144.18,3.4676]
[1727128757532,14.98,144.23,144.17,1.4458]
[1727128758431,14.98,144.23,144.18,3.4677]
[1727128761835,14.98,144.23,144.17,4.9137]
[1727128762036,14.98,144.23,144.17,1.4458]
[1727128762831,14.98,144.23,144.18,3.4676]
[1727128770640,14.98,144.23,144.16,3.468]
[1727128770845,14.98,144.21,144.16,3.468]
[1727128771746,14.98,144.21,144.15,85.00678816]
[1727128771947,1.4377,144.2,144.15,85.00678816]
[1727128773443,16.4177,144.2,144.15,85.00678816]
[1727128774450,9.6,144.18,144.15,85.00678816]
[1727128776845,2.7948,144.25,144.17,9.6]
[1727128777045,2.7948,144.25,144.15,81.53848816]
[1727128777046,1.4591,144.24,144.19,9.6]
[1727128777446,9.6,144.23,144.19,9.6]
[1727128780356,9.6,144.23,144.19,13.0674]
[1727128780642,1.4591,144.24,144.19,9.6]
[1727128780853,1.4591,144.24,144.16,2.7262]
[1727128781151,9.6,144.23,144.18,9.6]
[1727128781849,9.6,144.23,144.18,13.0675]
[1727128783863,9.6,144.23,144.19,3.4674]
[1727128784852,9.6,144.23,144.2,3.4672]
[1727128785449,1.4591,144.24,144.21,3.4669]
[1727128785654,1.4591,144.24,144.18,9.6]
[1727128785955,11.0591,144.24,144.18,9.6]
[1727128786856,11.0591,144.24,144.2,3.4671]
[1727128792270,11.0591,144.24,144.2,13.0671]
[1727128794472,1.4591,144.24,144.2,9.6]
[1727128794668,1.4591,144.24,144.21,9.6]
[1727128794973,1.4591,144.24,144.21,13.0668]
[1727128797869,11.0591,144.24,144.2,3.4671]
[1727128798074,9.6,144.23,144.16,6.12557543]
[1727128798276,9.6,144.23,144.18,9.6]
[1727128799673,9.6,144.23,144.2,3.4671]
[1727128800369,1.4591,144.24,144.18,9.6]
[1727128800771,9.6,144.22,144.16,2.7262]
[1727128800963,9.6,144.17,144.08,3.54197042]
[1727128801164,9.6,144.17,143.99,14.42823804]
[1727128801165,3.44413601,144.18,144.09,2.841]
[1727128801366,1.4571,144.16,144.09,2.841]
[1727128801578,9.6,144.13,144.09,2.841]
[1727128802079,1.4571,144.16,144.09,1.4568]
[1727128802080,3.46356696,144.15,144.09,1.4568]
[1727128802271,9.6,144.12,144.09,1.4568]
[1727128803887,3.46356696,144.15,144.09,4.9265]
[1727128804077,9.6,144.14,144.09,4.9265]
[1727128804676,9.6,144.15,144.1,13.0696]
[1727128805374,9.6,144.11,144.04,1.4626]
[1727128805581,1.33,144.15,144.05,9.6]
[1727128805582,9.6,144.09,144.05,9.6]
[1727128805978,9.6,144.09,144.05,13.0708]
[1727128806372,9.6,144.11,144.06,9.6]
[1727128807677,9.6,144.11,144.06,13.0705]
[1727128807878,9.6,144.12,144.07,9.6]
[1727128808075,1.33,144.15,144.08,9.6]
[1727128808272,9.6,144.14,144.09,3.4697]
[1727128808471,10.93,144.15,144.11,9.6]
[1727128808680,9.6,144.15,144.11,9.6]
[1727128809675,9.6,144.15,144.12,3.4691]
[1727128809880,11.0571,144.16,144.12,3.4691]
[1727128810079,9.6,144.18,144.12,9.6]
[1727128810285,9.6,144.18,144.13,9.6]
[1727128810781,9.6,144.18,144.14,3.4686]
[1727128811489,9.6,144.18,144.13,13.0688]
[1727128812078,9.6,144.16,144.12,3.4691]
[1727128813294,1.3694,144.21,144.12,3.4691]
[1727128813295,9.6,144.15,144.12,3.4691]
[1727128813487,9.6,144.15,144.11,3.4693]
[1727128818289,9.6,144.15,144.12,9.6]
[1727128818596,9.6,144.15,144.12,13.0691]
[1727128822191,9.6,144.15,144.12,3.4691]
[1727128829000,9.6,144.15,144.11,9.6]
[1727128829299,9.6,144.15,144.1,1.4116]
[1727128829606,9.6,144.15,144.1,11.0116]
[1727128830200,9.6,144.15,144.12,3.469]
[1727128830896,9.6,144.13,144.08,81.58379783]
[1727128831101,9.6,144.11,144.08,81.58379783]
[1727128831297,9.6,144.1,144.08,81.58379783]
[1727128833508,9.6,144.1,144.07,3.4702]
[1727128835815,9.6,144.1,144.08,3.4701]
[1727128837314,1.4213,144.15,144.08,3.4701]
[1727128837517,9.6,144.11,144.08,3.4701]
[1727128837712,1.4213,144.15,144.04,1.3927]
[1727128837921,9.6,144.09,144.04,10.9927]
[1727128838211,9.6,144.08,144.05,3.4706]
[1727128841123,9.6,144.08,144.04,3.4709]
[1727128841316,9.6,144.06,144.01,81.61451369]
[1727128841518,9.6,144.05,144.02,3.4715]
[1727128841722,9.6,144.05,144.01,81.61451369]
[1727128841918,9.6,144.04,144.01,81.61451369]
[1727128842521,9.6,144.04,143.98,11.0639]
[1727128842725,9.6,144.02,143.94,1.361]
[1727128843019,9.6,144.0,143.95,9.6]
[1727128843924,13.00641307,144.0,143.95,9.6]
[1727128844319,13.00641307,144.0,143.94,10.961]
[1727128844516,1.4358,143.99,143.94,10.961]
[1727128844921,1.4358,143.99,143.95,3.4732]
[1727128845625,1.4358,143.99,143.96,3.4729]
[1727128846717,9.6,143.98,143.96,3.4729]
[1727128849233,11.0358,143.99,143.96,3.4729]
[1727128850136,9.6,144.01,143.97,9.6]
[1727128850432,9.6,144.01,143.98,3.4724]
[1727128854230,9.6,144.01,143.99,3.4722]
[1727128855730,13.1238724,144.02,143.99,3.4722]
[1727128855937,9.6,144.02,144.0,3.4719]
[1727128856333,9.6,144.04,144.0,9.6]
[1727128856744,9.6,144.04,144.02,3.4715]
[1727128864347,9.6,144.04,144.01,3.4717]
[1727128867358,9.6,144.03,144.01,3.4717]
[1727128875269,9.6,144.03,144.0,3.4719]
[1727128875559,9.6,144.03,143.97,9.6]
[1727128875560,9.6,144.01,143.97,9.6]
[1727128875764,9.6,144.01,143.96,9.6]
[1727128876170,9.6,144.0,143.97,3.4725]
[1727128876464,9.6,144.0,143.95,9.6]
[1727128876964,9.6,144.0,143.97,3.4725]
[1727128877264,9.6,144.0,143.95,9.6]
[1727128877461,9.6,144.0,143.96,9.6]
[1727128877662,9.6,144.0,143.97,3.4727]
[1727128879773,3.44740397,144.03,143.99,3.4722]
[1727128880067,9.6,144.01,143.99,3.4722]
[1727128886270,9.6,144.01,143.97,9.6]
[1727128887776,9.6,144.01,143.99,3.4721]
[1727128890680,9.6,144.03,143.99,9.6]
[1727128892478,9.6,144.03,143.97,9.6]
[1727128892778,9.6,144.03,144.0,3.4718]
[1727128899588,9.6,144.03,144.01,3.4717]
[1727128899888,9.6,144.03,143.99,9.6]
[1727128900083,9.6,144.03,144.02,3.4715]
[1727128901886,9.6,144.03,144.01,3.4717]
[1727128904790,9.6,144.02,144.0,3.4718]
[1727128908496,9.6,144.02,144.01,3.4718]
[1727128911198,9.6,144.03,144.01,3.4718]
[1727128911697,3.39042523,144.06,144.01,3.4718]
[1727128911897,9.6,144.03,144.0,3.4719]
[1727128912900,9.6,144.02,144.0,3.4719]
[1727128913098,9.6,144.01,143.95,10.989]
[1727128913294,9.6,143.99,143.95,10.989]
[1727128914398,9.6,143.99,143.96,9.6]
[1727128914785,9.6,144.0,143.98,3.4725]
[1727128920801,9.6,144.0,143.99,3.4722]
[1727128921103,9.6,144.0,143.95,1.389]
[1727128921104,9.6,144.02,143.97,9.6]
[1727128921597,9.6,144.02,143.99,3.472]
[1727128921803,9.6,144.02,143.97,9.6]
[1727128922904,9.6,144.02,143.99,3.472]
[1727128931213,9.6,144.02,144.0,3.4719]
[1727128933023,13.71215582,144.06,144.01,3.4716]
[1727128933204,9.6,144.04,143.99,9.6]
[1727128933612,9.6,144.04,144.02,3.4714]
[1727128936208,9.6,144.04,144.03,3.4713]
[1727128936405,6.33441523,144.07,144.0,9.6]
[1727128936616,83.38,144.13,143.97,3.39830449]
[1727128936907,9.6,144.11,144.06,9.6]
[1727128937312,13.72195655,144.11,144.06,9.6]
[1727128937504,9.6,144.1,144.08,3.4699]
[1727128937908,1.4252,144.12,144.06,9.6]
[1727128937909,1.4252,144.12,144.09,3.4697]
[1727128938112,9.6,144.11,144.06,9.6]
[1727128938424,307.38,144.29,144.14,3.4686]
[1727128938713,307.38,144.29,144.1,9.6]
[1727128938714,9.6,144.18,144.13,9.6]
[1727128939117,9.6,144.18,144.15,3.4683]
[1727128939728,9.6,144.16,144.11,2.8784]
[1727128939908,9.6,144.12,144.1,81.57264111]
[1727128940112,9.6,144.12,144.04,1.396]
[1727128940113,9.6,144.11,144.04,2.8245]
[1727128940411,9.6,144.09,144.04,12.4245]
[1727128940905,9.6,144.09,144.07,3.4703]
[1727128941102,9.6,144.11,144.06,9.6]
[1727128941318,4.80375234,144.17,144.1,9.6]
[1727128941504,9.6,144.15,144.1,9.6]
[1727128942309,1.3922,144.17,144.11,9.6]
[1727128942512,9.6,144.17,144.13,9.6]
[1727128942816,9.6,144.16,144.13,3.4687]
[1727128944220,9.6,144.19,144.14,9.6]
[1727128944715,9.6,144.19,144.15,3.4682]
[1727128944913,9.6,144.19,144.14,9.6]
[1727128945310,9.6,144.18,144.08,81.58026422]
[1727128945516,9.6,144.18,144.12,9.6]
[1727128945905,9.6,144.18,144.14,3.4684]
[1727128946308,9.6,144.16,144.08,81.58026422]
[1727128946516,9.6,144.16,144.11,9.6]
[1727128946712,9.6,144.17,144.12,9.6]